[Event "Titled Tuesday Blitz May 16 Early 2023"]
[White "Hayrapetyan, Hovik"]
[Black "Piesik, Piotr"]
[WhiteFideId "13302639"]
[BlackFideId "1136194"]
[WhiteElo "2348"]
[BlackElo "2299"]
[Result "1-0"]
[Round "11"]
[TimeControl "180+2"]
[Date "2023.05.16"]
[WhiteClock "0:00:20"]
[BlackClock "0:00:15"]

1. d4 {[%clk 0:03:00]}  c5 {[%clk 0:02:57]} 2. d5 {[%clk 0:03:00]}  e5 {[%clk 0:02:57]} 3. Nc3 {[%clk 0:03:00]}  d6 {[%clk 0:02:57]} 4. e4 {[%clk 0:02:59]}  Be7 {[%clk 0:02:58]} 5. h4 {[%clk 0:02:49]}  Bxh4 {[%clk 0:02:53]} 6. g3 {[%clk 0:02:35]}  Bg5 {[%clk 0:02:52]} 7. f4 {[%clk 0:02:35]}  exf4 {[%clk 0:02:51]} 8. gxf4 {[%clk 0:02:36]}  Bh4+ {[%clk 0:02:50]} 9. Kd2 {[%clk 0:02:36]}  Na6 {[%clk 0:02:42]} 10. Bb5+ {[%clk 0:02:30]}  Kf8 {[%clk 0:02:40]} 11. Nf3 {[%clk 0:02:17]}  Bg4 {[%clk 0:02:36]} 12. Be2 {[%clk 0:01:40]}  Bg3 {[%clk 0:02:36]} 13. Kd3 {[%clk 0:01:20]}  Nb4+ {[%clk 0:02:27]} 14. Kc4 {[%clk 0:01:20]}  b5+ {[%clk 0:02:17]} 15. Nxb5 {[%clk 0:01:17]}  Nf6 {[%clk 0:02:16]} 16. a3 {[%clk 0:01:09]}  Nxe4 {[%clk 0:01:43]} 17. axb4 {[%clk 0:01:09]}  cxb4 {[%clk 0:01:43]} 18. Nbd4 {[%clk 0:01:03]}  Qb6 {[%clk 0:01:37]} 19. Kb3 {[%clk 0:00:48]}  Nc5+ {[%clk 0:01:34]} 20. Ka2 {[%clk 0:00:48]}  Re8 {[%clk 0:01:12]} 21. Rg1 {[%clk 0:00:39]}  b3+ {[%clk 0:01:09]} 22. cxb3 {[%clk 0:00:38]}  Rxe2 {[%clk 0:00:55]} 23. Qxe2 {[%clk 0:00:33]}  Nxb3 {[%clk 0:00:15]} 24. Qb5 {[%clk 0:00:20]} 1-0


[Site "https://www.chess.com"]

[Event "Titled Tuesday Blitz May 16 Early 2023"]
[White "Jakubowski, Krzysztof"]
[Black "Tanenbaum, Zachary"]
[WhiteFideId "1112848"]
[BlackFideId "2060850"]
[WhiteElo "2359"]
[BlackElo "2175"]
[Result "1/2-1/2"]
[Round "11"]
[TimeControl "180+2"]
[Date "2023.05.16"]
[WhiteClock "0:00:19"]
[BlackClock "0:00:07"]

1. e4 {[%clk 0:03:00]}  e5 {[%clk 0:02:59]} 2. Nf3 {[%clk 0:03:00]}  Nc6 {[%clk 0:03:00]} 3. Bc4 {[%clk 0:03:00]}  Nf6 {[%clk 0:03:00]} 4. Ng5 {[%clk 0:02:59]}  d5 {[%clk 0:03:00]} 5. exd5 {[%clk 0:02:59]}  Na5 {[%clk 0:03:00]} 6. Bb5+ {[%clk 0:02:59]}  c6 {[%clk 0:03:01]} 7. dxc6 {[%clk 0:02:59]}  bxc6 {[%clk 0:03:02]} 8. Bd3 {[%clk 0:02:59]}  Nd5 {[%clk 0:03:02]} 9. h4 {[%clk 0:02:58]}  h6 {[%clk 0:03:02]} 10. Qh5 {[%clk 0:02:56]}  Qf6 {[%clk 0:03:02]} 11. Nh7 {[%clk 0:02:56]}  Rxh7 {[%clk 0:03:02]} 12. Bxh7 {[%clk 0:02:56]}  g6 {[%clk 0:03:02]} 13. Qe2 {[%clk 0:02:56]}  Nf4 {[%clk 0:02:58]} 14. Qf3 {[%clk 0:02:56]}  Bb7 {[%clk 0:02:59]} 15. Nc3 {[%clk 0:02:53]}  Qg7 {[%clk 0:02:59]} 16. Ne4 {[%clk 0:02:33]}  O-O-O {[%clk 0:02:36]} 17. d3 {[%clk 0:02:23]}  f5 {[%clk 0:02:36]} 18. Bxf4 {[%clk 0:02:20]}  exf4 {[%clk 0:02:34]} 19. O-O-O {[%clk 0:02:02]}  Qxh7 {[%clk 0:02:09]} 20. Nd2 {[%clk 0:01:54]}  Bd6 {[%clk 0:01:45]} 21. Rhe1 {[%clk 0:01:50]}  Qf7 {[%clk 0:01:41]} 22. Nb3 {[%clk 0:01:40]}  Nxb3+ {[%clk 0:01:40]} 23. axb3 {[%clk 0:01:41]}  c5 {[%clk 0:01:39]} 24. Qh3 {[%clk 0:01:37]}  Qd5 {[%clk 0:01:32]} 25. f3 {[%clk 0:01:34]}  a5 {[%clk 0:01:31]} 26. Re4 {[%clk 0:01:22]}  Kc7 {[%clk 0:01:14]} 27. Ra4 {[%clk 0:01:20]}  Ra8 {[%clk 0:01:05]} 28. h5 {[%clk 0:01:04]}  Bc6 {[%clk 0:01:03]} 29. Rc4 {[%clk 0:00:59]}  Bb5 {[%clk 0:00:59]} 30. hxg6 {[%clk 0:00:59]}  Bxc4 {[%clk 0:00:58]} 31. dxc4 {[%clk 0:00:59]}  Qe5 {[%clk 0:00:55]} 32. Qxh6 {[%clk 0:00:56]}  a4 {[%clk 0:00:53]} 33. bxa4 {[%clk 0:00:36]}  Rxa4 {[%clk 0:00:50]} 34. Kb1 {[%clk 0:00:35]}  Rb4 {[%clk 0:00:39]} 35. b3 {[%clk 0:00:31]}  Qc3 {[%clk 0:00:38]} 36. Qh7+ {[%clk 0:00:21]}  Kc6 {[%clk 0:00:37]} 37. Qf7 {[%clk 0:00:19]}  Rxb3+ {[%clk 0:00:07]} 38. cxb3 {[%clk 0:00:19]}  Qxb3+ {[%clk 0:00:07]} 39. Kc1 {[%clk 0:00:19]}  Qc3+ {[%clk 0:00:07]} 40. Kb1 {[%clk 0:00:19]}  Qb3+ {[%clk 0:00:07]} 41. Kc1 {[%clk 0:00:19]}  Qc3+ {[%clk 0:00:07]} 42. Kb1 {[%clk 0:00:19]}  Qb3+ {[%clk 0:00:07]} 1/2-1/2


[Site "https://www.chess.com"]

[Event "Titled Tuesday Blitz May 16 Early 2023"]
[White "Tologon tegin, Semetei"]
[Black "Domingo Nunez, Ruben"]
[WhiteFideId "13800574"]
[BlackFideId "22245570"]
[WhiteElo "2247"]
[BlackElo "2404"]
[Result "0-1"]
[Round "11"]
[TimeControl "180+2"]
[Date "2023.05.16"]
[WhiteClock "0:00:00"]
[BlackClock "0:00:10"]

1. d4 {[%clk 0:02:58]}  g6 {[%clk 0:02:59]} 2. Nc3 {[%clk 0:02:57]}  Bg7 {[%clk 0:03:00]} 3. e4 {[%clk 0:02:56]}  c6 {[%clk 0:03:00]} 4. Nf3 {[%clk 0:02:53]}  d5 {[%clk 0:03:01]} 5. h3 {[%clk 0:02:49]}  dxe4 {[%clk 0:03:02]} 6. Nxe4 {[%clk 0:02:48]}  Nf6 {[%clk 0:03:03]} 7. Bd3 {[%clk 0:02:41]}  Nbd7 {[%clk 0:03:01]} 8. O-O {[%clk 0:02:35]}  O-O {[%clk 0:03:00]} 9. c3 {[%clk 0:02:33]}  Nxe4 {[%clk 0:02:57]} 10. Bxe4 {[%clk 0:02:33]}  c5 {[%clk 0:02:57]} 11. Be3 {[%clk 0:02:27]}  Qc7 {[%clk 0:02:51]} 12. Rc1 {[%clk 0:02:23]}  Rd8 {[%clk 0:02:49]} 13. Qe2 {[%clk 0:02:18]}  Nf6 {[%clk 0:02:47]} 14. Bd3 {[%clk 0:02:13]}  b6 {[%clk 0:02:43]} 15. Rfe1 {[%clk 0:02:08]}  Bb7 {[%clk 0:02:34]} 16. dxc5 {[%clk 0:02:08]}  bxc5 {[%clk 0:02:35]} 17. Bc4 {[%clk 0:02:05]}  e6 {[%clk 0:02:23]} 18. Bg5 {[%clk 0:02:02]}  h6 {[%clk 0:02:21]} 19. Bh4 {[%clk 0:02:02]}  Re8 {[%clk 0:02:15]} 20. Ne5 {[%clk 0:02:01]}  Ne4 {[%clk 0:02:04]} 21. Ng4 {[%clk 0:01:17]}  g5 {[%clk 0:01:25]} 22. f3 {[%clk 0:01:16]}  Nxc3 {[%clk 0:01:19]} 23. bxc3 {[%clk 0:01:16]}  gxh4 {[%clk 0:01:20]} 24. Qe3 {[%clk 0:01:02]}  Kh7 {[%clk 0:01:11]} 25. Rb1 {[%clk 0:00:44]}  Rab8 {[%clk 0:01:06]} 26. Rb3 {[%clk 0:00:31]}  f5 {[%clk 0:00:47]} 27. Nf2 {[%clk 0:00:28]}  Bd5 {[%clk 0:00:45]} 28. Bxd5 {[%clk 0:00:22]}  exd5 {[%clk 0:00:43]} 29. Qxe8 {[%clk 0:00:23]}  Rxe8 {[%clk 0:00:44]} 30. Rxe8 {[%clk 0:00:23]}  c4 {[%clk 0:00:42]} 31. Rb5 {[%clk 0:00:19]}  Qd7 {[%clk 0:00:25]} 32. Reb8 {[%clk 0:00:18]}  Qe6 {[%clk 0:00:15]} 33. Rb1 {[%clk 0:00:07]}  Bxc3 {[%clk 0:00:15]} 34. R8b7+ {[%clk 0:00:07]}  Kg6 {[%clk 0:00:15]} 35. Kf1 {[%clk 0:00:04]}  Qe5 {[%clk 0:00:11]} 36. Rxa7 {[%clk 0:00:04]}  Bd4 {[%clk 0:00:11]} 37. Ra6+ {[%clk 0:00:04]}  Kh5 {[%clk 0:00:11]} 38. Rb2 {[%clk 0:00:00]}  Bxb2 {[%clk 0:00:10]} 0-1


[Site "https://www.chess.com"]

[Event "Titled Tuesday Blitz May 16 Early 2023"]
[White "Begmuratov, Alisher"]
[Black "Ginzburg, Yakov"]
[WhiteFideId "14203367"]
[BlackFideId "4157176"]
[WhiteElo "2387"]
[BlackElo "2305"]
[Result "0-1"]
[Round "11"]
[TimeControl "180+2"]
[Date "2023.05.16"]
[WhiteClock "0:01:23"]
[BlackClock "0:01:14"]

1. d4 {[%clk 0:03:00]}  d5 {[%clk 0:02:56]} 2. Nf3 {[%clk 0:03:01]}  Nf6 {[%clk 0:02:52]} 3. e3 {[%clk 0:02:59]}  c6 {[%clk 0:02:50]} 4. Bd3 {[%clk 0:02:58]}  Bg4 {[%clk 0:02:46]} 5. h3 {[%clk 0:02:58]}  Bxf3 {[%clk 0:02:43]} 6. Qxf3 {[%clk 0:02:59]}  Nbd7 {[%clk 0:02:39]} 7. c4 {[%clk 0:02:53]}  e5 {[%clk 0:02:38]} 8. Qe2 {[%clk 0:02:52]}  e4 {[%clk 0:02:37]} 9. Bc2 {[%clk 0:02:52]}  a6 {[%clk 0:02:31]} 10. O-O {[%clk 0:02:51]}  b5 {[%clk 0:02:31]} 11. cxd5 {[%clk 0:02:51]}  cxd5 {[%clk 0:02:32]} 12. Nc3 {[%clk 0:02:50]}  Bb4 {[%clk 0:02:27]} 13. f3 {[%clk 0:02:50]}  O-O {[%clk 0:02:26]} 14. fxe4 {[%clk 0:02:49]}  Bxc3 {[%clk 0:02:26]} 15. bxc3 {[%clk 0:02:45]}  Nxe4 {[%clk 0:02:26]} 16. Ba3 {[%clk 0:02:29]}  Re8 {[%clk 0:02:24]} 17. Rf4 {[%clk 0:02:10]}  Ndf6 {[%clk 0:02:20]} 18. Bxe4 {[%clk 0:02:07]}  Rxe4 {[%clk 0:02:08]} 19. Rf5 {[%clk 0:02:05]}  Qd7 {[%clk 0:02:04]} 20. Raf1 {[%clk 0:02:03]}  Rae8 {[%clk 0:02:03]} 21. R1f3 {[%clk 0:01:48]}  Rxe3 {[%clk 0:01:57]} 22. Rxe3 {[%clk 0:01:39]}  Rxe3 {[%clk 0:01:56]} 23. Qf2 {[%clk 0:01:37]}  Re6 {[%clk 0:01:20]} 24. Bb4 {[%clk 0:01:33]}  Ne4 {[%clk 0:01:20]} 25. Qf4 {[%clk 0:01:32]}  h6 {[%clk 0:01:16]} 26. Qb8+ {[%clk 0:01:30]}  Re8 {[%clk 0:01:15]} 27. Qb6 {[%clk 0:01:23]}  Qxf5 {[%clk 0:01:14]} 0-1


[Site "https://www.chess.com"]

[Event "Titled Tuesday Blitz May 16 Early 2023"]
[White "Jakic, Ivan"]
[Black "Florescu, Codrut-Constantin"]
[WhiteFideId "14504901"]
[BlackFideId "1202200"]
[WhiteElo "2370"]
[BlackElo "2191"]
[Result "0-1"]
[Round "11"]
[TimeControl "180+2"]
[Date "2023.05.16"]
[WhiteClock "0:00:16"]
[BlackClock "0:01:11"]

1. e4 {[%clk 0:03:00]}  c5 {[%clk 0:02:59]} 2. Nf3 {[%clk 0:03:00]}  e6 {[%clk 0:02:59]} 3. d4 {[%clk 0:02:59]}  cxd4 {[%clk 0:03:00]} 4. Nxd4 {[%clk 0:02:59]}  a6 {[%clk 0:03:01]} 5. Nc3 {[%clk 0:02:59]}  d6 {[%clk 0:03:00]} 6. Be3 {[%clk 0:02:56]}  b5 {[%clk 0:03:00]} 7. g4 {[%clk 0:02:56]}  Bb7 {[%clk 0:03:00]} 8. Bg2 {[%clk 0:02:56]}  Nd7 {[%clk 0:02:59]} 9. a3 {[%clk 0:02:56]}  Ne7 {[%clk 0:02:57]} 10. Qe2 {[%clk 0:02:56]}  Rc8 {[%clk 0:02:55]} 11. f4 {[%clk 0:02:56]}  Nc6 {[%clk 0:02:38]} 12. O-O-O {[%clk 0:02:50]}  Na5 {[%clk 0:02:37]} 13. e5 {[%clk 0:02:36]}  Rxc3 {[%clk 0:02:28]} 14. bxc3 {[%clk 0:02:33]}  dxe5 {[%clk 0:02:22]} 15. Bxb7 {[%clk 0:02:32]}  Bxa3+ {[%clk 0:02:19]} 16. Kb1 {[%clk 0:02:31]}  Nxb7 {[%clk 0:02:20]} 17. fxe5 {[%clk 0:01:32]}  O-O {[%clk 0:02:18]} 18. Nb3 {[%clk 0:01:28]}  Qc7 {[%clk 0:02:15]} 19. Bd4 {[%clk 0:01:24]}  Nb6 {[%clk 0:02:01]} 20. Rhf1 {[%clk 0:01:22]}  Nd5 {[%clk 0:01:54]} 21. Rf3 {[%clk 0:01:15]}  Nc5 {[%clk 0:01:48]} 22. Rh3 {[%clk 0:00:31]}  Nf4 {[%clk 0:01:28]} 23. Qf3 {[%clk 0:00:25]}  Nxh3 {[%clk 0:01:28]} 24. Qxh3 {[%clk 0:00:26]}  Nxb3 {[%clk 0:01:22]} 25. cxb3 {[%clk 0:00:27]}  Bc5 {[%clk 0:01:21]} 26. Qd3 {[%clk 0:00:24]}  Bxd4 {[%clk 0:01:20]} 27. Qxd4 {[%clk 0:00:24]}  Qc6 {[%clk 0:01:21]} 28. Rd2 {[%clk 0:00:23]}  a5 {[%clk 0:01:19]} 29. Kb2 {[%clk 0:00:23]}  a4 {[%clk 0:01:18]} 30. b4 {[%clk 0:00:23]}  h6 {[%clk 0:01:13]} 31. h4 {[%clk 0:00:22]}  Rc8 {[%clk 0:01:13]} 32. g5 {[%clk 0:00:22]}  h5 {[%clk 0:01:12]} 33. g6 {[%clk 0:00:21]}  fxg6 {[%clk 0:01:12]} 34. Rg2 {[%clk 0:00:16]}  Qxg2+ {[%clk 0:01:11]} 0-1


[Site "https://www.chess.com"]

[Event "Titled Tuesday Blitz May 16 Early 2023"]
[White "Arabidze, Meri"]
[Black "Martic, Ivan"]
[WhiteFideId "13604040"]
[BlackFideId "929301"]
[WhiteElo "2405"]
[BlackElo "2360"]
[Result "1-0"]
[Round "11"]
[TimeControl "180+2"]
[Date "2023.05.16"]
[WhiteClock "0:01:02"]
[BlackClock "0:00:11"]

1. d4 {[%clk 0:03:00]}  Nf6 {[%clk 0:02:56]} 2. Nf3 {[%clk 0:03:01]}  g6 {[%clk 0:02:56]} 3. g3 {[%clk 0:03:02]}  Bg7 {[%clk 0:02:56]} 4. Bg2 {[%clk 0:03:03]}  O-O {[%clk 0:02:56]} 5. O-O {[%clk 0:03:04]}  d6 {[%clk 0:02:57]} 6. a4 {[%clk 0:03:04]}  a5 {[%clk 0:02:53]} 7. Nc3 {[%clk 0:03:04]}  d5 {[%clk 0:02:53]} 8. Ne5 {[%clk 0:03:04]}  c6 {[%clk 0:02:51]} 9. Re1 {[%clk 0:03:04]}  Bf5 {[%clk 0:02:47]} 10. Bf4 {[%clk 0:03:03]}  Nbd7 {[%clk 0:02:42]} 11. Nxd7 {[%clk 0:03:02]}  Qxd7 {[%clk 0:02:43]} 12. Be5 {[%clk 0:03:02]}  Rfe8 {[%clk 0:02:29]} 13. b3 {[%clk 0:02:53]}  Bh3 {[%clk 0:02:24]} 14. Bh1 {[%clk 0:02:49]}  Ng4 {[%clk 0:02:19]} 15. Bxg7 {[%clk 0:02:49]}  Kxg7 {[%clk 0:02:20]} 16. e4 {[%clk 0:02:48]}  e5 {[%clk 0:02:04]} 17. exd5 {[%clk 0:02:46]}  Qf5 {[%clk 0:01:58]} 18. f3 {[%clk 0:02:39]}  Nf6 {[%clk 0:01:22]} 19. dxc6 {[%clk 0:02:38]}  exd4 {[%clk 0:01:18]} 20. cxb7 {[%clk 0:02:25]}  dxc3 {[%clk 0:01:11]} 21. Qd4 {[%clk 0:02:13]}  Rad8 {[%clk 0:00:52]} 22. Qxc3 {[%clk 0:02:12]}  Kg8 {[%clk 0:00:43]} 23. Bg2 {[%clk 0:02:08]}  Bxg2 {[%clk 0:00:38]} 24. Kxg2 {[%clk 0:02:09]}  Nd5 {[%clk 0:00:38]} 25. Rxe8+ {[%clk 0:01:22]}  Rxe8 {[%clk 0:00:39]} 26. Qd2 {[%clk 0:01:22]}  Qe5 {[%clk 0:00:33]} 27. Rc1 {[%clk 0:01:10]}  Ne3+ {[%clk 0:00:31]} 28. Kg1 {[%clk 0:01:09]}  Qc5 {[%clk 0:00:27]} 29. Qf2 {[%clk 0:01:09]}  Rb8 {[%clk 0:00:16]} 30. Re1 {[%clk 0:01:07]}  Rxb7 {[%clk 0:00:15]} 31. Rxe3 {[%clk 0:01:06]}  Kg7 {[%clk 0:00:15]} 32. Kg2 {[%clk 0:01:04]}  Rc7 {[%clk 0:00:14]} 33. c4 {[%clk 0:01:04]}  Rb7 {[%clk 0:00:13]} 34. Qb2+ {[%clk 0:01:04]}  Kh6 {[%clk 0:00:12]} 35. Re4 {[%clk 0:01:02]}  Qb4 {[%clk 0:00:11]} 36. Rh4+ {[%clk 0:01:02]}  Kg5 {[%clk 0:00:11]} 37. Qe5+ {[%clk 0:01:02]}  f5 {[%clk 0:00:11]} 38. f4# {[%clk 0:01:02]} 1-0


[Site "https://www.chess.com"]

[Event "Titled Tuesday Blitz May 16 Early 2023"]
[White "Colas, Joshua"]
[Black "cristianserban1"]
[WhiteFideId "2044447"]
[WhiteElo "2347"]
[BlackElo "2533"]
[Result "1-0"]
[Round "11"]
[TimeControl "180+2"]
[Date "2023.05.16"]
[WhiteClock "0:00:25"]
[BlackClock "0:00:19"]

1. Nf3 {[%clk 0:02:57]}  d5 {[%clk 0:02:59]} 2. c4 {[%clk 0:02:53]}  e6 {[%clk 0:02:57]} 3. g3 {[%clk 0:02:40]}  c6 {[%clk 0:02:56]} 4. Bg2 {[%clk 0:02:38]}  dxc4 {[%clk 0:02:56]} 5. O-O {[%clk 0:02:39]}  Nf6 {[%clk 0:02:55]} 6. a4 {[%clk 0:02:40]}  b5 {[%clk 0:02:50]} 7. axb5 {[%clk 0:02:30]}  cxb5 {[%clk 0:02:50]} 8. b3 {[%clk 0:02:29]}  cxb3 {[%clk 0:02:21]} 9. Qxb3 {[%clk 0:02:30]}  a6 {[%clk 0:02:22]} 10. Ne5 {[%clk 0:02:21]}  Nd5 {[%clk 0:02:21]} 11. Nc3 {[%clk 0:02:14]}  Bb7 {[%clk 0:02:18]} 12. Bb2 {[%clk 0:01:22]}  b4 {[%clk 0:02:05]} 13. Nxd5 {[%clk 0:01:10]}  Bxd5 {[%clk 0:02:05]} 14. Qa4+ {[%clk 0:01:05]}  Nd7 {[%clk 0:01:56]} 15. Bxd5 {[%clk 0:01:02]}  exd5 {[%clk 0:01:56]} 16. Qc6 {[%clk 0:00:56]}  Ra7 {[%clk 0:00:53]} 17. Rxa6 {[%clk 0:00:34]}  Rxa6 {[%clk 0:00:46]} 18. Qxa6 {[%clk 0:00:35]}  Nxe5 {[%clk 0:00:41]} 19. Bxe5 {[%clk 0:00:31]}  f6 {[%clk 0:00:32]} 20. Rc1 {[%clk 0:00:29]}  Kf7 {[%clk 0:00:31]} 21. Rc7+ {[%clk 0:00:26]}  Kg6 {[%clk 0:00:20]} 22. Qd3+ {[%clk 0:00:25]}  Kh6 {[%clk 0:00:21]} 23. Qe3+ {[%clk 0:00:15]}  g5 {[%clk 0:00:20]} 24. Rc6 {[%clk 0:00:12]}  Bg7 {[%clk 0:00:18]} 25. h4 {[%clk 0:00:13]}  Kh5 {[%clk 0:00:08]} 26. Qf3+ {[%clk 0:00:11]}  Kg6 {[%clk 0:00:09]} 27. hxg5 {[%clk 0:00:12]}  Rf8 {[%clk 0:00:08]} 28. gxf6 {[%clk 0:00:11]}  Bxf6 {[%clk 0:00:08]} 29. Bxf6 {[%clk 0:00:11]}  Rxf6 {[%clk 0:00:08]} 30. Rxf6+ {[%clk 0:00:11]}  Qxf6 {[%clk 0:00:08]} 31. Qg4+ {[%clk 0:00:12]}  Kf7 {[%clk 0:00:08]} 32. Qxb4 {[%clk 0:00:13]}  Qa1+ {[%clk 0:00:07]} 33. Kg2 {[%clk 0:00:13]}  Qe5 {[%clk 0:00:07]} 34. Qb7+ {[%clk 0:00:12]}  Kg6 {[%clk 0:00:07]} 35. Qc6+ {[%clk 0:00:11]}  Kg7 {[%clk 0:00:07]} 36. Qd7+ {[%clk 0:00:11]}  Kf8 {[%clk 0:00:05]} 37. Qxh7 {[%clk 0:00:10]}  Qxe2 {[%clk 0:00:03]} 38. Qh6+ {[%clk 0:00:10]}  Ke7 {[%clk 0:00:03]} 39. Qg5+ {[%clk 0:00:09]}  Kd6 {[%clk 0:00:03]} 40. Qf4+ {[%clk 0:00:10]}  Kc6 {[%clk 0:00:02]} 41. Qf6+ {[%clk 0:00:10]}  Kb5 {[%clk 0:00:02]} 42. Qd4 {[%clk 0:00:09]}  Kc6 {[%clk 0:00:02]} 43. g4 {[%clk 0:00:10]}  Qe6 {[%clk 0:00:02]} 44. g5 {[%clk 0:00:09]}  Qf7 {[%clk 0:00:02]} 45. Qf6+ {[%clk 0:00:09]}  Qxf6 {[%clk 0:00:03]} 46. gxf6 {[%clk 0:00:10]}  Kd6 {[%clk 0:00:03]} 47. Kf3 {[%clk 0:00:11]}  Ke6 {[%clk 0:00:04]} 48. Kf4 {[%clk 0:00:11]}  Kxf6 {[%clk 0:00:05]} 49. d4 {[%clk 0:00:12]}  Ke6 {[%clk 0:00:05]} 50. Kg5 {[%clk 0:00:12]}  Kf7 {[%clk 0:00:06]} 51. Kf5 {[%clk 0:00:13]}  Ke7 {[%clk 0:00:07]} 52. Ke5 {[%clk 0:00:14]}  Kf7 {[%clk 0:00:07]} 53. Kxd5 {[%clk 0:00:15]}  Kf6 {[%clk 0:00:08]} 54. Kc6 {[%clk 0:00:15]}  Kf5 {[%clk 0:00:09]} 55. d5 {[%clk 0:00:16]}  Kf4 {[%clk 0:00:10]} 56. d6 {[%clk 0:00:17]}  Kf3 {[%clk 0:00:11]} 57. d7 {[%clk 0:00:17]}  Kxf2 {[%clk 0:00:12]} 58. d8=Q {[%clk 0:00:18]}  Ke2 {[%clk 0:00:13]} 59. Qf6 {[%clk 0:00:19]}  Ke3 {[%clk 0:00:14]} 60. Qf5 {[%clk 0:00:19]}  Ke2 {[%clk 0:00:14]} 61. Qf4 {[%clk 0:00:20]}  Kd3 {[%clk 0:00:15]} 62. Qe5 {[%clk 0:00:20]}  Kd2 {[%clk 0:00:15]} 63. Qe4 {[%clk 0:00:21]}  Kc3 {[%clk 0:00:15]} 64. Qd5 {[%clk 0:00:21]}  Kb2 {[%clk 0:00:16]} 65. Qc4 {[%clk 0:00:21]}  Ka3 {[%clk 0:00:16]} 66. Qb5 {[%clk 0:00:22]}  Ka2 {[%clk 0:00:17]} 67. Kc5 {[%clk 0:00:22]}  Ka1 {[%clk 0:00:18]} 68. Kc4 {[%clk 0:00:23]}  Ka2 {[%clk 0:00:18]} 69. Kc3 {[%clk 0:00:24]}  Ka1 {[%clk 0:00:19]} 70. Qb2# {[%clk 0:00:25]} 1-0


[Site "https://www.chess.com"]

[Event "Titled Tuesday Blitz May 16 Early 2023"]
[White "Pacan-Milej, Kosma"]
[Black "Devaev, Alexander"]
[WhiteFideId "21800537"]
[BlackFideId "4169395"]
[WhiteElo "2302"]
[BlackElo "2172"]
[Result "1-0"]
[Round "11"]
[TimeControl "180+2"]
[Date "2023.05.16"]
[WhiteClock "0:01:25"]
[BlackClock "0:00:53"]

1. d4 {[%clk 0:03:00]}  Nf6 {[%clk 0:02:59]} 2. c4 {[%clk 0:03:01]}  e6 {[%clk 0:03:00]} 3. Nc3 {[%clk 0:03:02]}  Bb4 {[%clk 0:02:59]} 4. e3 {[%clk 0:03:02]}  c5 {[%clk 0:02:59]} 5. Ne2 {[%clk 0:03:01]}  cxd4 {[%clk 0:02:59]} 6. exd4 {[%clk 0:03:01]}  d5 {[%clk 0:03:00]} 7. a3 {[%clk 0:03:02]}  Bxc3+ {[%clk 0:03:00]} 8. Nxc3 {[%clk 0:03:03]}  Nc6 {[%clk 0:03:00]} 9. c5 {[%clk 0:03:00]}  Ne4 {[%clk 0:03:00]} 10. Bd3 {[%clk 0:02:55]}  Nxc3 {[%clk 0:03:00]} 11. bxc3 {[%clk 0:02:56]}  O-O {[%clk 0:02:51]} 12. O-O {[%clk 0:02:56]}  Ne7 {[%clk 0:02:33]} 13. Qh5 {[%clk 0:02:51]}  Ng6 {[%clk 0:02:30]} 14. Bg5 {[%clk 0:02:51]}  Qe8 {[%clk 0:02:02]} 15. Rae1 {[%clk 0:02:47]}  Bd7 {[%clk 0:01:57]} 16. Re3 {[%clk 0:02:45]}  f5 {[%clk 0:01:31]} 17. Rg3 {[%clk 0:01:46]}  Bb5 {[%clk 0:01:31]} 18. Bxb5 {[%clk 0:01:38]}  Qxb5 {[%clk 0:01:31]} 19. Rh3 {[%clk 0:01:38]}  Kf7 {[%clk 0:01:26]} 20. Re1 {[%clk 0:01:31]}  b6 {[%clk 0:01:17]} 21. g4 {[%clk 0:01:28]}  bxc5 {[%clk 0:01:05]} 22. gxf5 {[%clk 0:01:28]}  exf5 {[%clk 0:00:53]} 23. Re7+ {[%clk 0:01:25]} 1-0


[Site "https://www.chess.com"]

[Event "Titled Tuesday Blitz May 16 Early 2023"]
[White "Rom, Jasper"]
[Black "Manukyan, Sargis A."]
[WhiteFideId "2023733"]
[BlackFideId "13303970"]
[WhiteElo "2233"]
[BlackElo "2187"]
[Result "1-0"]
[Round "11"]
[TimeControl "180+2"]
[Date "2023.05.16"]
[WhiteClock "0:02:34"]
[BlackClock "0:02:40"]

1. e4 {[%clk 0:03:00]}  c5 {[%clk 0:02:59]} 2. Nc3 {[%clk 0:03:00]}  d6 {[%clk 0:03:00]} 3. f4 {[%clk 0:03:00]}  Nf6 {[%clk 0:03:00]} 4. Nf3 {[%clk 0:03:01]}  Nc6 {[%clk 0:03:00]} 5. Bb5 {[%clk 0:03:01]}  Bd7 {[%clk 0:03:00]} 6. d3 {[%clk 0:03:01]}  e6 {[%clk 0:03:00]} 7. O-O {[%clk 0:02:59]}  Be7 {[%clk 0:03:01]} 8. Qe1 {[%clk 0:02:59]}  O-O {[%clk 0:03:01]} 9. Bxc6 {[%clk 0:02:51]}  Bxc6 {[%clk 0:03:01]} 10. f5 {[%clk 0:02:52]}  d5 {[%clk 0:02:59]} 11. e5 {[%clk 0:02:47]}  Nd7 {[%clk 0:03:00]} 12. f6 {[%clk 0:02:37]}  gxf6 {[%clk 0:03:01]} 13. Bh6 {[%clk 0:02:36]}  fxe5 {[%clk 0:02:40]} 14. Qg3+ {[%clk 0:02:34]} 1-0


[Site "https://www.chess.com"]

[Event "Titled Tuesday Blitz May 16 Early 2023"]
[White "Korchmar, Vasiliy"]
[Black "Goncalves, Davi Sulzbacher"]
[WhiteFideId "24131750"]
[BlackFideId "2154510"]
[WhiteElo "2370"]
[BlackElo "2182"]
[Result "1-0"]
[Round "11"]
[TimeControl "180+2"]
[Date "2023.05.16"]
[WhiteClock "0:00:30"]
[BlackClock "0:00:09"]

1. e4 {[%clk 0:02:56]}  c5 {[%clk 0:02:59]} 2. Nf3 {[%clk 0:02:56]}  d6 {[%clk 0:02:59]} 3. d4 {[%clk 0:02:57]}  cxd4 {[%clk 0:03:00]} 4. Nxd4 {[%clk 0:02:58]}  Nf6 {[%clk 0:03:00]} 5. Nc3 {[%clk 0:02:58]}  a6 {[%clk 0:03:00]} 6. Be2 {[%clk 0:02:58]}  e5 {[%clk 0:03:00]} 7. Nb3 {[%clk 0:02:58]}  Be7 {[%clk 0:03:01]} 8. O-O {[%clk 0:02:59]}  O-O {[%clk 0:03:01]} 9. Be3 {[%clk 0:02:59]}  Be6 {[%clk 0:02:59]} 10. Qd2 {[%clk 0:02:53]}  Nbd7 {[%clk 0:02:57]} 11. a4 {[%clk 0:02:53]}  Nb6 {[%clk 0:02:57]} 12. Rfd1 {[%clk 0:02:39]}  Rc8 {[%clk 0:02:47]} 13. a5 {[%clk 0:02:33]}  Nc4 {[%clk 0:02:47]} 14. Bxc4 {[%clk 0:02:34]}  Rxc4 {[%clk 0:02:43]} 15. f3 {[%clk 0:02:29]}  Qc8 {[%clk 0:02:33]} 16. Qf2 {[%clk 0:01:41]}  Rd8 {[%clk 0:02:23]} 17. Bb6 {[%clk 0:01:40]}  Rd7 {[%clk 0:02:11]} 18. Nd2 {[%clk 0:01:40]}  Rc6 {[%clk 0:01:56]} 19. Nf1 {[%clk 0:01:41]}  d5 {[%clk 0:01:56]} 20. exd5 {[%clk 0:01:36]}  Nxd5 {[%clk 0:01:56]} 21. Nxd5 {[%clk 0:01:36]}  Bxd5 {[%clk 0:01:33]} 22. Ne3 {[%clk 0:01:36]}  Be6 {[%clk 0:01:33]} 23. Rxd7 {[%clk 0:01:37]}  Bxd7 {[%clk 0:01:30]} 24. Nd5 {[%clk 0:01:36]}  Bf8 {[%clk 0:01:20]} 25. c3 {[%clk 0:01:33]}  Be6 {[%clk 0:01:12]} 26. Ne3 {[%clk 0:01:30]}  Rd6 {[%clk 0:00:53]} 27. Re1 {[%clk 0:01:29]}  Qd7 {[%clk 0:00:45]} 28. Qg3 {[%clk 0:01:27]}  f6 {[%clk 0:00:44]} 29. h3 {[%clk 0:01:08]}  Rd2 {[%clk 0:00:43]} 30. b4 {[%clk 0:00:48]}  Qd3 {[%clk 0:00:42]} 31. Ng4 {[%clk 0:00:40]}  Kf7 {[%clk 0:00:29]} 32. Nxe5+ {[%clk 0:00:36]}  fxe5 {[%clk 0:00:28]} 33. Qxe5 {[%clk 0:00:37]}  Qd6 {[%clk 0:00:20]} 34. Qh5+ {[%clk 0:00:31]}  Kg8 {[%clk 0:00:21]} 35. Bd4 {[%clk 0:00:31]}  Bf7 {[%clk 0:00:17]} 36. Qg5 {[%clk 0:00:30]}  h6 {[%clk 0:00:09]} 37. Qxd2 {[%clk 0:00:30]} 1-0


[Site "https://www.chess.com"]